bitfinex/quotes_BTCUSD_20240819
["timestamp","ask_amount","ask_price","bid_price","bid_amount"]
[1724065632618,1e-08,58221.0,58220.0,4.15029717]
[1724065633003,1e-08,58221.0,58220.0,4.09892157]
[1724065633205,1e-08,58221.0,58220.0,4.15028612]
[1724065633426,1e-08,58221.0,58220.0,3.80676212]
[1724065633724,1e-08,58221.0,58220.0,3.75539757]
[1724065633912,1e-08,58221.0,58220.0,3.83255664]
[1724065634115,1e-08,58221.0,58220.0,4.10092157]
[1724065634368,1e-08,58221.0,58220.0,4.15227599]
[1724065634574,1e-08,58221.0,58220.0,3.80474822]
[1724065635017,1e-08,58221.0,58220.0,3.75339757]
[1724065636705,1e-08,58221.0,58220.0,3.75539757]
[1724065636937,1e-08,58221.0,58220.0,3.75739757]
[1724065638910,1e-08,58221.0,58220.0,3.75339757]
[1724065639373,1e-08,58221.0,58220.0,3.75539757]
[1724065639789,1e-08,58221.0,58220.0,3.75339757]
[1724065640229,1e-08,58221.0,58220.0,3.75539757]
[1724065640861,1e-08,58221.0,58220.0,3.75339757]
[1724065641114,1e-08,58221.0,58220.0,3.75539757]
[1724065641461,1e-08,58221.0,58220.0,3.61049757]
[1724065641753,0.14260001,58221.0,58220.0,0.99209503]
[1724065641881,0.14260001,58221.0,58220.0,0.64857103]
[1724065642502,0.14260001,58221.0,58220.0,0.30504703]
[1724065642702,0.14260001,58221.0,58220.0,0.20504703]
[1724065642923,0.14260001,58221.0,58220.0,0.54857103]
[1724065643331,0.14260001,58221.0,58220.0,0.53457103]
[1724065643480,0.14260001,58221.0,58220.0,0.52057103]
[1724065643707,0.14260001,58221.0,58220.0,0.53357103]
[1724065643924,0.14260001,58221.0,58220.0,0.19004703]
[1724065644159,0.14260001,58221.0,58220.0,0.01828503]
[1724065644786,0.31435901,58221.0,58220.0,0.13228503]
[1724065645535,0.65787701,58221.0,58220.0,0.03228503]
[1724065646015,1.00139501,58221.0,58220.0,0.03228503]
[1724065646224,1.00139501,58221.0,58220.0,0.01828503]
[1724065646428,1.00139501,58221.0,58220.0,0.01328503]
[1724065646631,1.00139501,58221.0,58220.0,0.02128503]
[1724065646827,1.00139501,58221.0,58220.0,0.01328503]
[1724065647250,1.00139501,58221.0,58220.0,0.00528503]
[1724065647452,1.00139501,58221.0,58220.0,0.00828503]
[1724065648038,0.65787701,58221.0,58220.0,0.00828503]
[1724065648718,0.65787701,58221.0,58220.0,0.01028503]
[1724065649474,0.14260001,58221.0,58220.0,0.03894146]
[1724065649675,0.14260001,58221.0,58220.0,0.01028503]
[1724065649880,0.14260001,58221.0,58220.0,0.18204703]
[1724065650150,0.14260001,58221.0,58220.0,0.17704703]
[1724065650356,0.14360001,58221.0,58220.0,0.17704703]
[1724065650975,0.14260001,58221.0,58220.0,0.00528503]
[1724065651372,0.14260001,58221.0,58220.0,0.00828503]
[1724065651730,0.14260001,58221.0,58220.0,0.18004703]
[1724065652138,0.14260001,58221.0,58220.0,0.18204703]
[1724065652894,0.14260001,58221.0,58220.0,0.52557103]
[1724065654483,0.14260001,58221.0,58220.0,0.01028503]
[1724065655279,1e-08,58221.0,58220.0,0.01028503]
[1724065655531,1e-08,58221.0,58220.0,1.51028503]
[1724065656114,1e-08,58221.0,58220.0,1.68204703]
[1724065656313,1e-08,58221.0,58220.0,1.51028503]
[1724065657430,1e-08,58221.0,58220.0,1.68204703]
[1724065658380,1e-08,58221.0,58220.0,2.02557103]
[1724065659338,1e-08,58221.0,58220.0,2.36909503]
[1724065661172,1e-08,58221.0,58220.0,2.71261903]
[1724065662563,1e-08,58221.0,58220.0,1.21261903]
[1724065663273,1e-08,58221.0,58220.0,2.71261903]
[1724065663758,1e-08,58221.0,58220.0,2.85311903]
[1724065664248,1e-08,58221.0,58220.0,2.71261903]
[1724065667404,1e-08,58221.0,58220.0,2.88417357]
[1724065667606,1e-08,58221.0,58220.0,3.00717357]
[1724065667802,1e-08,58221.0,58220.0,3.35069757]
[1724065668406,1e-08,58221.0,58220.0,3.50049757]
[1724065668833,1e-08,58221.0,58220.0,3.50249757]
[1724065669036,1e-08,58221.0,58220.0,3.49549757]
[1724065669495,1e-08,58221.0,58220.0,3.51449757]
[1724065669703,1e-08,58221.0,58220.0,3.49949757]
[1724065669929,1e-08,58221.0,58220.0,3.47558898]
[1724065670149,1e-08,58221.0,58220.0,3.50358898]
[1724065670377,1e-08,58221.0,58220.0,3.50458898]
[1724065670806,1e-08,58221.0,58220.0,3.49258898]
[1724065671009,1e-08,58221.0,58220.0,3.50658898]
[1724065671427,1e-08,58221.0,58220.0,3.49258898]
[1724065671605,1e-08,58221.0,58220.0,3.50658898]
[1724065671823,1e-08,58221.0,58220.0,3.48958898]
[1724065672597,1e-08,58221.0,58220.0,3.50358898]
[1724065674448,1e-08,58221.0,58220.0,3.50458898]
[1724065674908,1e-08,58221.0,58220.0,3.50658898]
[1724065675156,1e-08,58221.0,58220.0,3.50858898]
[1724065675582,1e-08,58221.0,58220.0,3.82411298]
[1724065675990,1e-08,58221.0,58220.0,3.85211298]
[1724065676189,1e-08,58221.0,58220.0,3.83811298]
[1724065676357,1e-08,58221.0,58220.0,3.83893398]
[1724065676977,1e-08,58221.0,58220.0,3.83493398]
[1724065677545,1e-08,58221.0,58220.0,3.83693398]
[1724065677749,1e-08,58221.0,58220.0,3.83893398]
[1724065678154,1e-08,58221.0,58220.0,3.90435535]
[1724065678396,1e-08,58221.0,58220.0,3.85293398]
[1724065678597,1e-08,58221.0,58220.0,3.90435535]
[1724065678843,1e-08,58221.0,58220.0,3.85293398]
[1724065679034,1e-08,58221.0,58220.0,3.90435421]
[1724065679669,1e-08,58221.0,58220.0,3.90435335]
[1724065679795,1e-08,58221.0,58220.0,3.85293398]
[1724065680017,1e-08,58221.0,58220.0,4.21801564]
[1724065680210,1e-08,58221.0,58220.0,3.85293398]
[1724065680437,1e-08,58221.0,58220.0,3.90435703]
[1724065684184,1e-08,58221.0,58220.0,4.2166366]
[1724065684517,1e-08,58221.0,58220.0,4.43988504]
[1724065685223,1e-08,58221.0,58220.0,4.3113366]
[1724065685441,1e-08,58221.0,58220.0,4.43985605]
[1724065685643,1e-08,58221.0,58220.0,4.3113366]
[1724065686018,1e-08,58221.0,58220.0,4.43985605]
[1724065686650,1e-08,58221.0,58220.0,4.58185605]
[1724065688539,0.00904201,58224.0,58223.0,2.034483]
[1724065688749,0.00904201,58224.0,58223.0,2.79549141]
[1724065689770,0.00904201,58224.0,58223.0,2.82349141]
[1724065689979,0.00904201,58224.0,58223.0,4.32349141]
[1724065690186,0.00904201,58224.0,58223.0,4.67859141]
[1724065690431,0.00904201,58224.0,58223.0,4.57584016]
[1724065690647,0.00904201,58224.0,58223.0,4.91934616]
[1724065690851,0.00090311,58237.0,58235.0,1.904562]
[1724065691061,0.00090311,58237.0,58235.0,2.17711654]
[1724065691521,0.00090311,58237.0,58235.0,3.70011654]
[1724065692176,0.00090311,58237.0,58235.0,3.72311654]
[1724065692385,0.00090311,58237.0,58235.0,3.71011654]
[1724065692595,0.069731,58236.0,58235.0,3.36801654]
[1724065694749,0.069731,58236.0,58235.0,3.37847199]
[1724065695403,0.009031,58236.0,58235.0,3.73357199]
[1724065696454,0.009031,58236.0,58235.0,3.73457199]
[1724065697080,0.009031,58236.0,58235.0,3.73657199]
[1724065697703,0.009031,58236.0,58235.0,3.73357199]
[1724065700286,0.009031,58236.0,58235.0,3.73657199]
[1724065700544,0.009031,58236.0,58235.0,3.73857199]
[1724065701271,0.009031,58236.0,58235.0,3.72457199]
[1724065701508,0.009031,58236.0,58235.0,3.71057199]
[1724065701750,0.009031,58236.0,58235.0,4.08200799]
[1724065702209,0.009031,58236.0,58235.0,4.14410799]
[1724065702627,0.009031,58236.0,58235.0,4.14010799]
[1724065702838,0.009031,58236.0,58235.0,4.14210799]
[1724065703049,0.009031,58236.0,58235.0,4.14410799]
[1724065704431,0.009031,58236.0,58235.0,4.11610799]
[1724065704635,0.009031,58236.0,58235.0,4.13010799]
[1724065704856,0.009031,58236.0,58235.0,4.14410799]
[1724065705056,0.009031,58236.0,58235.0,4.13010799]
[1724065705583,0.009031,58236.0,58235.0,4.14410799]
[1724065706242,0.009031,58236.0,58235.0,4.13010799]
[1724065706850,0.086231,58236.0,58235.0,3.70890799]
[1724065707076,0.009031,58236.0,58235.0,3.70890799]
[1724065707284,0.009031,58236.0,58235.0,3.69490799]
[1724065707486,0.009031,58236.0,58235.0,3.72290799]
[1724065708562,0.009031,58236.0,58235.0,3.86490799]
[1724065709090,0.009031,58238.0,58235.0,3.86490799]
[1724065709091,0.06226822,58240.0,58239.0,1.687354]
[1724065709285,0.06226822,58240.0,58239.0,1.98190854]
[1724065710014,0.00090311,58242.0,58241.0,0.1717]
[1724065710212,0.00090311,58242.0,58241.0,1.90421342]
[1724065710412,0.00090311,58242.0,58241.0,1.90521342]
[1724065710612,0.00090311,58242.0,58241.0,1.90721342]
[1724065710826,0.00090311,58242.0,58241.0,3.40721342]
[1724065711023,0.00090311,58242.0,58241.0,3.40077999]
[1724065711422,0.00090311,58242.0,58241.0,3.42877999]
[1724065711744,0.00090311,58242.0,58241.0,3.41477999]
[1724065711951,0.00090311,58242.0,58241.0,3.40479861]
[1724065712146,0.07780311,58242.0,58241.0,3.41879861]
[1724065713299,0.07780311,58242.0,58241.0,3.42179861]
[1724065713540,0.07780311,58242.0,58241.0,3.40779861]
[1724065713770,0.07780311,58242.0,58241.0,3.42179861]
[1724065713978,0.07780311,58242.0,58241.0,3.43579861]
[1724065714177,0.07780311,58242.0,58241.0,3.43279861]
[1724065714814,0.07780311,58242.0,58241.0,3.41879861]
[1724065715035,0.07780311,58242.0,58241.0,3.40479861]
[1724065715245,0.07780311,58242.0,58241.0,3.43279861]
[1724065715893,0.07780311,58242.0,58241.0,3.37187316]
[1724065716102,0.07780311,58242.0,58241.0,3.52398263]
[1724065716103,0.14050311,58242.0,58241.0,3.52398263]
[1724065719031,1e-06,58249.0,58248.0,0.001]
[1724065719260,0.0002,58259.0,58248.0,0.001]
[1724065719261,0.0002,58259.0,58258.0,0.51495]
[1724065719412,0.0002,58259.0,58258.0,1.95840454]
[1724065719613,0.0002,58259.0,58258.0,3.48140454]
[1724065720279,0.0002,58259.0,58258.0,3.48240454]
[1724065720694,0.0002,58259.0,58258.0,3.49640454]
[1724065720886,0.0002,58259.0,58258.0,3.48640454]
[1724065721084,0.0002,58259.0,58258.0,3.82970454]
[1724065721238,0.0002,58259.0,58258.0,3.90466421]
[1724065721442,0.0002,58259.0,58258.0,3.89066421]
[1724065721655,0.0002,58259.0,58258.0,3.90466421]
[1724065721859,0.0002,58259.0,58258.0,3.91866421]
[1724065722260,0.0002,58259.0,58258.0,3.90466421]
[1724065722462,0.0002,58259.0,58258.0,4.11736421]
[1724065722661,0.0002,58259.0,58258.0,4.11336421]
[1724065723079,0.0002,58259.0,58258.0,4.10136421]
[1724065723428,0.0002,58259.0,58258.0,4.11736421]
[1724065723544,0.0002,58259.0,58258.0,4.12778905]
[1724065723746,0.0002,58259.0,58258.0,4.18858905]
[1724065723947,0.0002,58259.0,58258.0,4.20258905]
[1724065724153,0.0002,58259.0,58258.0,4.17458905]
[1724065724353,0.0002,58259.0,58258.0,4.18858905]
[1724065724644,0.0002,58259.0,58258.0,4.20258905]
[1724065724820,0.0002,58259.0,58258.0,4.18858905]
[1724065725036,0.00110311,58259.0,58258.0,4.17458905]
[1724065725246,0.00110311,58259.0,58258.0,4.20258905]
[1724065726379,0.00110311,58259.0,58258.0,4.18858905]
[1724065726582,0.00110311,58259.0,58258.0,4.17458905]
[1724065726789,0.00110311,58259.0,58258.0,4.18858905]
[1724065727142,0.00110311,58259.0,58258.0,4.53188905]
[1724065727551,0.00110311,58259.0,58258.0,4.51788905]
[1724065727759,0.00110311,58259.0,58258.0,4.53188905]
[1724065727960,0.00110311,58259.0,58258.0,4.54588905]
[1724065728351,0.00110311,58259.0,58258.0,4.51788905]
[1724065728541,0.00110311,58259.0,58258.0,4.53188905]
[1724065728892,0.00110311,58259.0,58258.0,4.46708905]
[1724065729116,0.00110311,58259.0,58258.0,4.47108905]
[1724065729531,0.00110311,58259.0,58258.0,4.48508905]
[1724065730296,0.00110311,58259.0,58258.0,4.47108905]
[1724065730698,0.00110311,58259.0,58258.0,4.48508905]
[1724065731135,0.00110311,58259.0,58258.0,4.47108905]
[1724065731540,0.00110311,58259.0,58258.0,4.48508905]
[1724065733323,0.00902001,58263.0,58262.0,2.312594]
[1724065733564,0.00902001,58263.0,58262.0,2.73380821]
[1724065734526,0.00902001,58263.0,58262.0,4.24780821]
[1724065734867,0.00902001,58269.0,58268.0,1.547584]
[1724065735039,0.00902001,58269.0,58268.0,2.60103921]
[1724065735238,0.00902001,58269.0,58268.0,2.60303921]
[1724065735418,0.00902001,58269.0,58268.0,4.10303921]
[1724065735621,0.00902001,58269.0,58268.0,4.44628021]
[1724065735826,0.00902001,58278.0,58275.0,1.5494]
[1724065736086,0.00902001,58278.0,58275.0,2.24811421]
[1724065736663,0.00902001,58278.0,58275.0,2.2542919]
[1724065736870,0.00902001,58278.0,58275.0,2.2562919]
[1724065737108,0.00902001,58278.0,58275.0,2.2582919]
[1724065737362,0.00902001,58278.0,58275.0,2.3403919]
[1724065737545,0.00902001,58278.0,58275.0,2.3523919]
[1724065737747,0.00902001,58278.0,58275.0,2.3683919]
[1724065738187,0.00902001,58278.0,58275.0,2.3543919]
[1724065738616,0.00902001,58278.0,58275.0,2.3683919]
[1724065739069,2e-08,58279.0,58278.0,0.005]
[1724065739296,2e-08,58279.0,58278.0,2.51721771]
[1724065739523,2e-08,58279.0,58278.0,2.67817738]
[1724065740449,2e-08,58279.0,58278.0,2.6887464]
[1724065740895,2e-08,58279.0,58278.0,2.7027464]
[1724065741117,2e-08,58279.0,58278.0,2.3555644]
[1724065741320,2e-08,58279.0,58278.0,2.0123824]
[1724065742199,2e-08,58279.0,58278.0,2.1543824]
[1724065742685,2e-08,58279.0,58278.0,2.0123824]
[1724065743169,2e-08,58279.0,58278.0,1.9983824]
[1724065743409,2e-08,58279.0,58278.0,1.9833824]
[1724065743652,2e-08,58279.0,58278.0,1.95042273]
[1724065743889,2e-08,58279.0,58278.0,1.9973824]
[1724065744374,0.07950002,58279.0,58278.0,1.9973824]
[1724065744619,0.14410002,58279.0,58278.0,1.75287354]
[1724065745168,0.14410002,58279.0,58278.0,1.40969154]
[1724065745419,0.14410002,58279.0,58278.0,1.42369154]
[1724065745647,0.14410002,58279.0,58278.0,1.92783321]
[1724065746357,0.14410002,58279.0,58278.0,1.92883321]
[1724065746567,0.14410002,58279.0,58278.0,1.92783321]
[1724065746773,0.14410002,58279.0,58278.0,1.86687354]
[1724065746979,0.14410002,58279.0,58278.0,1.92424987]
[1724065747390,0.07950002,58279.0,58278.0,1.92424987]
[1724065747802,0.07950002,58279.0,58278.0,3.42424987]
[1724065748054,0.07950002,58279.0,58278.0,3.42524987]
[1724065748260,0.07950002,58279.0,58278.0,3.42724987]
[1724065748799,2e-08,58279.0,58278.0,3.52837457]
[1724065748975,2e-08,58279.0,58278.0,3.61077457]
[1724065749624,0.00090202,58279.0,58278.0,3.61077457]
[1724065749871,0.00090202,58279.0,58278.0,3.60677457]
[1724065750117,0.00090202,58279.0,58278.0,3.61077457]
[1724065751550,0.00090202,58279.0,58278.0,3.95395657]
[1724065753745,0.00090202,58279.0,58278.0,3.95395003]
[1724065754659,0.00090202,58279.0,58278.0,3.95394993]
[1724065755165,0.00090202,58279.0,58278.0,3.95332875]
[1724065755399,0.00090202,58279.0,58278.0,3.91721069]
[1724065755604,0.00090202,58279.0,58278.0,3.95332855]
[1724065756710,0.00090202,58279.0,58278.0,3.80792855]
[1724065757136,0.00090202,58279.0,58278.0,3.7511734]
[1724065757340,0.00090202,58279.0,58278.0,3.80792888]
[1724065757791,0.00090202,58279.0,58278.0,3.94912888]
[1724065758792,0.00090202,58279.0,58278.0,4.09092888]
[1724065760556,0.00090202,58279.0,58278.0,3.40399173]
[1724065760783,0.00090202,58279.0,58278.0,3.54579173]
[1724065761267,0.00090202,58279.0,58278.0,3.54578214]
[1724065761472,0.00090202,58279.0,58278.0,3.54778214]
[1724065761674,0.00090202,58279.0,58278.0,3.89378414]
[1724065761888,0.00090202,58279.0,58278.0,3.55060214]
[1724065762820,0.00090202,58279.0,58278.0,3.89178414]
[1724065763019,0.00090202,58279.0,58278.0,3.94653929]
[1724065763224,0.00090202,58279.0,58278.0,3.94853929]
[1724065763623,0.00090202,58279.0,58278.0,3.95053929]
[1724065763821,0.00090202,58279.0,58278.0,3.54660214]
[1724065763822,0.07830202,58279.0,58278.0,3.54660214]
[1724065765040,0.07830202,58279.0,58278.0,3.54660424]
[1724065765669,0.07830202,58279.0,58278.0,3.5466046]
[1724065766859,0.07830202,58279.0,58278.0,3.4048046]
[1724065767071,0.07830202,58279.0,58278.0,0.886775]
[1724065767072,0.14340202,58279.0,58278.0,0.886775]
[1724065767279,0.14340202,58279.0,58278.0,1.20012954]
[1724065767490,0.14340202,58279.0,58278.0,1.54331154]
[1724065767926,0.14340202,58279.0,58278.0,1.57943838]
[1724065768144,0.14340202,58279.0,58278.0,1.52931154]
[1724065768353,0.14340202,58279.0,58278.0,1.471757]
[1724065768568,0.14340202,58279.0,58278.0,1.100575]
[1724065768785,0.14340202,58279.0,58278.0,0.25662]
[1724065768995,0.14340202,58279.0,58278.0,0.428211]
[1724065769206,0.14340202,58279.0,58278.0,1.114575]
[1724065769428,0.14340202,58279.0,58278.0,1.100575]
[1724065769625,0.14340202,58279.0,58278.0,1.112675]
[1724065769828,0.14340202,58279.0,58278.0,1.126675]
[1724065770037,0.14340202,58279.0,58278.0,1.114675]
[1724065770476,0.14340202,58279.0,58278.0,1.124675]
[1724065770683,0.14340202,58279.0,58278.0,1.134675]
[1724065770886,0.14340202,58279.0,58278.0,1.110675]
[1724065771309,0.14340202,58279.0,58278.0,1.119675]
[1724065771757,0.14340202,58279.0,58278.0,1.109675]
[1724065772214,0.14340202,58279.0,58278.0,0.775493]
[1724065772439,0.14340202,58279.0,58278.0,2.275493]
[1724065772653,0.14340202,58279.0,58278.0,2.618675]
[1724065775451,0.14340202,58279.0,58278.0,1.118675]
[1724065775884,0.14340202,58279.0,58278.0,2.618675]
[1724065778817,0.14340202,58279.0,58278.0,2.62886075]
[1724065779033,0.14340202,58279.0,58278.0,1.118675]
[1724065779454,0.14340202,58279.0,58278.0,2.618675]
[1724065780525,0.14340202,58279.0,58278.0,2.275493]
[1724065782235,0.14340202,58279.0,58278.0,2.618675]
[1724065782443,0.14340202,58279.0,58278.0,2.275493]
[1724065783885,0.14340202,58279.0,58278.0,2.618675]
[1724065784353,0.14340202,58279.0,58278.0,2.275493]
[1724065785161,0.14340202,58279.0,58278.0,2.618675]
[1724065785583,0.14340202,58279.0,58278.0,2.133593]
[1724065785784,0.14340202,58279.0,58278.0,2.275493]
[1724065786427,0.65816602,58279.0,58278.0,0.01882]
[1724065786630,0.31499002,58279.0,58278.0,0.01882]
[1724065786890,0.65816602,58279.0,58278.0,0.01882]
[1724065787104,0.65816602,58279.0,58278.0,0.00982]
[1724065787105,0.31499002,58279.0,58278.0,0.00982]
[1724065787315,0.31499002,58279.0,58278.0,0.181411]
[1724065787316,0.14340202,58279.0,58278.0,0.181411]
[1724065787520,0.14340202,58279.0,58278.0,0.176411]
[1724065788150,0.14340202,58279.0,58278.0,0.172411]
[1724065789644,0.14340202,58279.0,58278.0,0.518593]
[1724065790504,0.14340202,58279.0,58278.0,0.522593]
[1724065790943,0.14340202,58279.0,58278.0,1.50782]
[1724065791158,0.31499002,58279.0,58278.0,1.50782]
[1724065791359,0.14340202,58279.0,58278.0,1.50782]
[1724065792627,0.14340202,58279.0,58278.0,1.679411]
[1724065793282,0.14340202,58279.0,58278.0,1.79010007]
[1724065793495,0.14340202,58279.0,58278.0,1.679411]
[1724065795190,0.14340202,58279.0,58278.0,2.022593]
[1724065795392,0.14340202,58279.0,58278.0,1.679411]
[1724065795617,0.14340202,58279.0,58278.0,2.022593]
[1724065796927,0.14340202,58279.0,58278.0,2.365775]
[1724065799501,0.14340202,58279.0,58278.0,0.522593]
[1724065799502,0.14709311,58279.0,58278.0,0.522593]
[1724065799713,0.14709311,58279.0,58278.0,0.179411]
[1724065799925,0.14340202,58279.0,58278.0,0.522593]
[1724065801019,0.14709311,58279.0,58278.0,1.679411]
[1724065801223,0.14340202,58279.0,58278.0,1.679411]
[1724065801641,0.14340202,58279.0,58278.0,2.022593]
[1724065802070,0.14340202,58279.0,58278.0,2.02622205]
[1724065803359,0.14340202,58279.0,58278.0,2.36940405]
[1724065803781,0.14340202,58279.0,58278.0,2.02622205]
[1724065807823,0.14340202,58279.0,58278.0,2.36940405]
[1724065808687,0.14340202,58279.0,58278.0,2.02622205]
[1724065809722,0.14340202,58279.0,58278.0,2.36940405]
[1724065809849,0.14340202,58279.0,58278.0,2.02622205]
[1724065810850,0.14340202,58279.0,58278.0,0.52622205]
[1724065811384,0.14340202,58279.0,58278.0,2.02622205]
[1724065813233,0.08640202,58279.0,58278.0,2.02622205]
[1724065814155,0.08640202,58279.0,58278.0,2.36940405]
[1724065814338,0.08640202,58279.0,58278.0,2.02622205]
[1724065816977,0.09009311,58279.0,58278.0,2.02622205]
[1724065817204,0.09009311,58279.0,58278.0,0.52622205]
[1724065817783,0.09009311,58279.0,58278.0,2.02622205]
[1724065817980,0.09009311,58279.0,58278.0,1.68304005]
[1724065818964,0.09009311,58279.0,58278.0,2.02622205]
[1724065819815,0.09009311,58279.0,58278.0,1.68304005]
[1724065820049,0.09009311,58279.0,58278.0,2.02622205]
[1724065820466,0.09009311,58279.0,58278.0,1.51144905]
[1724065820682,0.60116602,58279.0,58278.0,0.01144905]
[1724065820903,0.94434202,58279.0,58278.0,0.01144905]
[1724065821111,1.32474761,58279.0,58278.0,0.01144905]
[1724065821342,1.39036984,58279.0,58278.0,0.01144905]
[1724065821555,1.54552019,58279.0,58278.0,0.01144905]
[1724065821994,1.6590235,58279.0,58278.0,0.00744905]
[1724065822199,1.56382749,58279.0,58278.0,0.00744905]
[1724065822449,2.52435979,58279.0,58278.0,0.00444905]
[1724065822657,2.2004647,58279.0,58278.0,0.00444905]
[1724065822872,2.02615419,58279.0,58278.0,0.00444905]
[1724065823085,1.85238201,58279.0,58278.0,0.00444905]
[1724065823293,1.85538201,58279.0,58278.0,0.00444905]
[1724065823508,1.85138201,58279.0,58278.0,0.00444905]
[1724065824561,1.85038201,58279.0,58278.0,0.00444905]
[1724065824767,1.54860615,58279.0,58278.0,0.00444905]
[1724065825004,1.39427295,58279.0,58278.0,0.00444905]
[1724065825455,1.17968271,58279.0,58278.0,0.00444905]
[1724065825663,1.11406048,58279.0,58278.0,0.00444905]
[1724065825869,0.77088448,58279.0,58278.0,0.00444905]
[1724065826306,0.78104421,58279.0,58278.0,0.00444905]
[1724065826515,0.65246047,58279.0,58278.0,0.00444905]
[1724065826937,0.78104421,58279.0,58278.0,0.00444905]
[1724065827166,0.65246047,58279.0,58278.0,0.00444905]
[1724065827875,0.99563647,58279.0,58278.0,0.00444905]
[1724065828084,1.12422021,58279.0,58278.0,0.00444905]
[1724065829133,0.99563647,58279.0,58278.0,0.00444905]
[1724065829539,1.09848289,58279.0,58278.0,0.00444905]
[1724065829744,1.09908763,58279.0,58278.0,0.00444905]
[1724065830988,0.99624168,58279.0,58278.0,0.00444905]
[1724065831620,1.09908,58279.0,58278.0,0.00444905]
[1724065832439,0.755904,58279.0,58278.0,0.00444905]
[1724065832645,0.32632598,58279.0,58278.0,0.00444905]
[1724065832858,0.22690525,58279.0,58278.0,0.01877395]
[1724065833065,0.00390311,58279.0,58278.0,0.01877395]
[1724065833472,0.00390311,58279.0,58278.0,0.00444905]
[1724065834522,0.00090311,58279.0,58278.0,0.00444905]
[1724065835504,0.00290311,58279.0,58278.0,0.00444905]
[1724065836070,0.00090311,58279.0,58278.0,0.00444905]
[1724065836491,0.00190311,58279.0,58278.0,0.00444905]
[1724065838150,0.00190311,58279.0,58278.0,0.17604005]
[1724065838595,0.00090311,58279.0,58278.0,0.00444905]
[1724065838798,0.0045942,58279.0,58278.0,0.00444905]
[1724065839018,0.0045942,58279.0,58278.0,0.17704005]
[1724065839216,0.14630311,58279.0,58278.0,0.00444905]
[1724065839421,1.00424311,58279.0,58278.0,0.00444905]
[1724065839623,1.05242814,58279.0,58278.0,0.00644905]
[1724065839804,1.52414016,58279.0,58278.0,0.00644905]
[1724065840005,1.52414016,58279.0,58278.0,0.00744905]
[1724065840006,1.46122839,58279.0,58278.0,0.00744905]
[1724065842857,1.46122839,58279.0,58278.0,0.00644905]
[1724065842996,1.46622839,58279.0,58278.0,0.00644905]
[1724065843477,1.59474155,58279.0,58278.0,0.00644905]
[1724065844819,1.59192503,58279.0,58278.0,0.00644905]
[1724065845651,1.46341831,58279.0,58278.0,0.00644905]
[1724065845787,1.59192335,58279.0,58278.0,0.00644905]
[1724065846376,1.46341831,58279.0,58278.0,0.00644905]
[1724065846570,1.59192166,58279.0,58278.0,0.00644905]
[1724065846976,1.59192262,58279.0,58278.0,0.00644905]
[1724065847189,1.46341831,58279.0,58278.0,0.00644905]
[1724065847546,1.59192061,58279.0,58278.0,0.00644905]
[1724065847766,1.46341831,58279.0,58278.0,0.00644905]
[1724065848202,1.76347459,58279.0,58278.0,0.00644905]
[1724065848552,1.46341831,58279.0,58278.0,0.00644905]
[1724065848756,1.59191806,58279.0,58278.0,0.00644905]
[1724065848964,1.46341831,58279.0,58278.0,0.00644905]
[1724065851879,1.46641831,58279.0,58278.0,0.00644905]
[1724065852062,1.96380238,58279.0,58278.0,0.00644905]
[1724065852559,2.13235692,58279.0,58278.0,0.00644905]
[1724065852758,2.13335692,58279.0,58278.0,0.00644905]
[1724065852958,1.96080238,58279.0,58278.0,0.00644905]
[1724065853227,1.91781765,58279.0,58278.0,0.00644905]
[1724065853630,1.91766631,58279.0,58278.0,0.00644905]
[1724065853831,2.07186893,58279.0,58278.0,0.00644905]
[1724065854035,2.11207311,58279.0,58278.0,0.00644905]
[1724065854164,1.95804196,58279.0,58278.0,0.00644905]
[1724065854779,1.96104196,58279.0,58278.0,0.00644905]
[1724065854977,1.95804196,58279.0,58278.0,0.00644905]
[1724065855183,1.95904196,58279.0,58278.0,0.00644905]
[1724065855581,1.95804196,58279.0,58278.0,0.00644905]
[1724065856955,1.95904196,58279.0,58278.0,0.00644905]
[1724065857184,2.04420794,58279.0,58278.0,0.00644905]
[1724065857362,2.04720794,58279.0,58278.0,0.00644905]
[1724065857592,1.95804196,58279.0,58278.0,0.00644905]
[1724065858766,1.61517872,58279.0,58278.0,0.00644905]
[1724065859954,1.46096094,58279.0,58278.0,0.00644905]
[1724065860156,1.61517872,58279.0,58278.0,0.00644905]
[1724065861150,1.46096094,58279.0,58278.0,0.00644905]
[1724065862981,1.11778494,58279.0,58278.0,0.00644905]
[1724065863558,1.03508494,58279.0,58278.0,0.00644905]
[1724065864169,1.37826094,58279.0,58278.0,0.00644905]
[1724065864529,1.03508494,58279.0,58278.0,0.00644905]
[1724065866338,1.18930272,58279.0,58278.0,0.00644905]
[1724065866538,1.03508494,58279.0,58278.0,0.00644905]
[1724065867323,1.18930272,58279.0,58278.0,0.00644905]
[1724065868090,1.19201646,58279.0,58278.0,0.00644905]
[1724065868952,1.15154227,58279.0,58278.0,0.00644905]
[1724065870337,1.49471827,58279.0,58278.0,0.00644905]
[1724065870926,1.15154227,58279.0,58278.0,0.00644905]
[1724065871475,1.49471827,58279.0,58278.0,0.00644905]
[1724065873083,1.15154227,58279.0,58278.0,0.00644905]
[1724065873543,1.49471827,58279.0,58278.0,0.00644905]
[1724065873754,1.57461827,58279.0,58278.0,0.00644905]
[1724065874719,1.27193174,58279.0,58278.0,0.00644905]
[1724065875339,1.61510774,58279.0,58278.0,0.00644905]
[1724065875582,1.53520774,58279.0,58278.0,0.00644905]
[1724065877501,1.47250774,58279.0,58278.0,0.00644905]
[1724065878288,1.47250774,58279.0,58278.0,0.00644905]
[1724065880687,1.12933174,58279.0,58278.0,0.00644905]
[1724065881314,1.76883887,58279.0,58278.0,0.00644905]
[1724065881544,1.24476287,58279.0,58278.0,0.00644905]
[1724065881956,1.12933174,58279.0,58278.0,0.00644905]
[1724065882265,1.2448517,58279.0,58278.0,0.00644905]
[1724065882517,0.97491171,58279.0,58278.0,0.00644905]
[1724065884413,1.12933174,58279.0,58278.0,0.00644905]
[1724065884822,1.13204846,58279.0,58278.0,0.00644905]
[1724065885457,1.19204846,58279.0,58278.0,0.00644905]
[1724065885669,1.76440855,58279.0,58278.0,0.00644905]
[1724065885868,1.76040855,58279.0,58278.0,0.00644905]
[1724065886071,1.76440855,58279.0,58278.0,0.00644905]
[1724065886501,2.10258455,58279.0,58278.0,0.00444905]
[1724065886696,2.27413909,58279.0,58278.0,0.00444905]
[1724065886903,2.28013909,58279.0,58278.0,0.00644905]
[1724065887105,2.28013909,58279.0,58278.0,0.00544905]
[1724065887583,2.37413909,58279.0,58278.0,0.00544905]
[1724065888021,2.39040643,58279.0,58278.0,0.00644905]
[1724065889371,2.37295841,58279.0,58278.0,0.00644905]
[1724065889615,2.57700848,58279.0,58278.0,0.00544905]
[1724065889847,2.57700848,58279.0,58278.0,0.00444905]
[1724065890078,2.39223067,58279.0,58278.0,0.00644905]